[Event "Titled Tuesday Blitz December 20 Late 2022"]
[White "Musovic, Armin"]
[Black "Rego, Pedro Filipe"]
[WhiteFideId "939935"]
[BlackFideId "1904310"]
[WhiteElo "2288"]
[BlackElo "2193"]
[Result "1/2-1/2"]
[Round "03"]
[TimeControl "180+1"]
[Date "2022.12.21"]
[WhiteClock "0:00:06"]
[BlackClock "0:00:07"]

1. a3 {[%clk 0:03:00]}  g6 {[%clk 0:02:59]} 2. Nc3 {[%clk 0:03:01]}  Bg7 {[%clk 0:02:59]} 3. e4 {[%clk 0:03:02]}  c5 {[%clk 0:02:56]} 4. Bc4 {[%clk 0:03:02]}  e6 {[%clk 0:02:55]} 5. d3 {[%clk 0:03:03]}  Nc6 {[%clk 0:02:53]} 6. Bf4 {[%clk 0:03:01]}  d6 {[%clk 0:02:52]} 7. Nge2 {[%clk 0:03:01]}  Nge7 {[%clk 0:02:51]} 8. O-O {[%clk 0:03:02]}  O-O {[%clk 0:02:50]} 9. Qc1 {[%clk 0:03:02]}  a6 {[%clk 0:02:45]} 10. Ba2 {[%clk 0:03:02]}  Nd4 {[%clk 0:02:44]} 11. Nxd4 {[%clk 0:03:01]}  cxd4 {[%clk 0:02:45]} 12. Ne2 {[%clk 0:03:01]}  d5 {[%clk 0:02:40]} 13. f3 {[%clk 0:03:01]}  dxe4 {[%clk 0:02:40]} 14. fxe4 {[%clk 0:03:01]}  e5 {[%clk 0:02:28]} 15. Bh6 {[%clk 0:02:59]}  Be6 {[%clk 0:02:29]} 16. Bxg7 {[%clk 0:02:58]}  Kxg7 {[%clk 0:02:29]} 17. Bxe6 {[%clk 0:02:54]}  fxe6 {[%clk 0:02:30]} 18. Qg5 {[%clk 0:02:54]}  Nc6 {[%clk 0:02:28]} 19. Qg4 {[%clk 0:02:55]}  Qe7 {[%clk 0:02:25]} 20. Ng3 {[%clk 0:02:55]}  Kh8 {[%clk 0:02:22]} 21. Rxf8+ {[%clk 0:02:55]}  Rxf8 {[%clk 0:02:21]} 22. Rf1 {[%clk 0:02:56]}  Rxf1+ {[%clk 0:02:21]} 23. Nxf1 {[%clk 0:02:57]}  Qf6 {[%clk 0:02:20]} 24. g3 {[%clk 0:02:56]}  Nd8 {[%clk 0:02:14]} 25. Kg2 {[%clk 0:02:55]}  Nf7 {[%clk 0:02:09]} 26. Qf3 {[%clk 0:02:53]}  Kg7 {[%clk 0:02:08]} 27. h4 {[%clk 0:02:50]}  h5 {[%clk 0:02:01]} 28. Nd2 {[%clk 0:02:46]}  Nd6 {[%clk 0:01:57]} 29. Qd1 {[%clk 0:02:31]}  Nf7 {[%clk 0:01:48]} 30. Nf3 {[%clk 0:02:28]}  Nh6 {[%clk 0:01:41]} 31. Ng5 {[%clk 0:02:11]}  Ng4 {[%clk 0:01:33]} 32. Qf3 {[%clk 0:01:54]}  Ne3+ {[%clk 0:01:23]} 33. Kf2 {[%clk 0:01:54]}  Nd1+ {[%clk 0:01:12]} 34. Ke1 {[%clk 0:01:48]}  Nxb2 {[%clk 0:01:04]} 35. Qxf6+ {[%clk 0:01:37]}  Kxf6 {[%clk 0:01:04]} 36. Kd2 {[%clk 0:01:29]}  Na4 {[%clk 0:01:00]} 37. Kc1 {[%clk 0:01:10]}  b5 {[%clk 0:00:53]} 38. Nh7+ {[%clk 0:01:05]}  Ke7 {[%clk 0:00:50]} 39. Ng5 {[%clk 0:01:06]}  a5 {[%clk 0:00:42]} 40. Nf3 {[%clk 0:01:04]}  Kf6 {[%clk 0:00:39]} 41. Nd2 {[%clk 0:00:59]}  Nc3 {[%clk 0:00:37]} 42. Nb3 {[%clk 0:00:57]}  Ne2+ {[%clk 0:00:36]} 43. Kd2 {[%clk 0:00:57]}  Nxg3 {[%clk 0:00:36]} 44. Nxa5 {[%clk 0:00:57]}  g5 {[%clk 0:00:33]} 45. Ke1 {[%clk 0:00:50]}  gxh4 {[%clk 0:00:31]} 46. Kf2 {[%clk 0:00:51]}  Kg5 {[%clk 0:00:28]} 47. Nc6 {[%clk 0:00:50]}  Kf4 {[%clk 0:00:25]} 48. Kg2 {[%clk 0:00:49]}  Ne2 {[%clk 0:00:23]} 49. Ne7 {[%clk 0:00:43]}  Nc3 {[%clk 0:00:20]} 50. Ng6+ {[%clk 0:00:43]}  Ke3 {[%clk 0:00:17]} 51. Nxe5 {[%clk 0:00:40]}  Nb1 {[%clk 0:00:14]} 52. Nd7 {[%clk 0:00:26]}  Nxa3 {[%clk 0:00:09]} 53. Nf8 {[%clk 0:00:26]}  Nxc2 {[%clk 0:00:09]} 54. Nxe6 {[%clk 0:00:26]}  b4 {[%clk 0:00:09]} 55. Nc5 {[%clk 0:00:25]}  Kf4 {[%clk 0:00:08]} 56. Kh3 {[%clk 0:00:23]}  Na1 {[%clk 0:00:05]} 57. Kxh4 {[%clk 0:00:20]}  b3 {[%clk 0:00:06]} 58. Na4 {[%clk 0:00:21]}  Nc2 {[%clk 0:00:05]} 59. Kxh5 {[%clk 0:00:19]}  Nb4 {[%clk 0:00:06]} 60. Nb2 {[%clk 0:00:19]}  Nc6 {[%clk 0:00:04]} 61. Kg6 {[%clk 0:00:18]}  Ke3 {[%clk 0:00:05]} 62. Kf6 {[%clk 0:00:17]}  Kd2 {[%clk 0:00:05]} 63. e5 {[%clk 0:00:17]}  Kc3 {[%clk 0:00:06]} 64. Na4+ {[%clk 0:00:15]}  Kxd3 {[%clk 0:00:06]} 65. e6 {[%clk 0:00:14]}  Kc2 {[%clk 0:00:06]} 66. Kg5 {[%clk 0:00:04]}  b2 {[%clk 0:00:06]} 67. Nxb2 {[%clk 0:00:05]}  Kxb2 {[%clk 0:00:06]} 68. Kf4 {[%clk 0:00:05]}  Kc2 {[%clk 0:00:06]} 69. Ke4 {[%clk 0:00:06]}  d3 {[%clk 0:00:07]} 70. Kd5 {[%clk 0:00:07]}  Ne7+ {[%clk 0:00:06]} 71. Kd6 {[%clk 0:00:07]}  Ng6 {[%clk 0:00:07]} 72. e7 {[%clk 0:00:07]}  d2 {[%clk 0:00:08]} 73. e8=Q {[%clk 0:00:07]}  d1=Q+ {[%clk 0:00:08]} 74. Kc7 {[%clk 0:00:07]}  Qd3 {[%clk 0:00:08]} 75. Qc6+ {[%clk 0:00:06]}  Kd2 {[%clk 0:00:08]} 76. Qd6 {[%clk 0:00:06]}  Qxd6+ {[%clk 0:00:07]} 77. Kxd6 {[%clk 0:00:06]} 1/2-1/2


[Site "https://www.chess.com"]

[Event "Titled Tuesday Blitz December 20 Late 2022"]
[White "Myers, Dominique"]
[Black "Burke, Paul"]
[WhiteFideId "2041715"]
[BlackFideId "2605767"]
[WhiteElo "1953"]
[BlackElo "1783"]
[Result "1-0"]
[Round "03"]
[TimeControl "180+1"]
[Date "2022.12.21"]
[WhiteClock "0:02:13"]
[BlackClock "0:00:36"]

1. e4 {[%clk 0:02:56]}  e5 {[%clk 0:02:58]} 2. Nf3 {[%clk 0:02:57]}  Nc6 {[%clk 0:02:57]} 3. g3 {[%clk 0:02:57]}  g6 {[%clk 0:02:55]} 4. Bg2 {[%clk 0:02:57]}  Bg7 {[%clk 0:02:55]} 5. O-O {[%clk 0:02:57]}  Nge7 {[%clk 0:02:54]} 6. Re1 {[%clk 0:02:57]}  h6 {[%clk 0:02:54]} 7. c3 {[%clk 0:02:57]}  O-O {[%clk 0:02:54]} 8. d4 {[%clk 0:02:57]}  d6 {[%clk 0:02:54]} 9. Be3 {[%clk 0:02:57]}  f5 {[%clk 0:02:53]} 10. dxe5 {[%clk 0:02:54]}  dxe5 {[%clk 0:02:52]} 11. Bc5 {[%clk 0:02:54]}  Qxd1 {[%clk 0:02:49]} 12. Rxd1 {[%clk 0:02:53]}  Be6 {[%clk 0:02:48]} 13. Nbd2 {[%clk 0:02:53]}  b6 {[%clk 0:02:46]} 14. Ba3 {[%clk 0:02:51]}  Rfd8 {[%clk 0:02:42]} 15. Re1 {[%clk 0:02:50]}  f4 {[%clk 0:02:38]} 16. Rad1 {[%clk 0:02:40]}  g5 {[%clk 0:02:38]} 17. gxf4 {[%clk 0:02:39]}  exf4 {[%clk 0:02:36]} 18. h3 {[%clk 0:02:39]}  Ng6 {[%clk 0:02:28]} 19. Nb3 {[%clk 0:02:37]}  Rxd1 {[%clk 0:02:22]} 20. Rxd1 {[%clk 0:02:38]}  Nge5 {[%clk 0:02:06]} 21. Nfd4 {[%clk 0:02:37]}  Nxd4 {[%clk 0:01:56]} 22. cxd4 {[%clk 0:02:32]}  Nc4 {[%clk 0:01:50]} 23. d5 {[%clk 0:02:29]}  Bd7 {[%clk 0:01:42]} 24. Nd4 {[%clk 0:02:29]}  Nxa3 {[%clk 0:01:40]} 25. bxa3 {[%clk 0:02:29]}  Bxd4 {[%clk 0:01:39]} 26. Rxd4 {[%clk 0:02:29]}  c5 {[%clk 0:01:33]} 27. dxc6 {[%clk 0:02:28]}  Bxc6 {[%clk 0:01:32]} 28. Rd6 {[%clk 0:02:28]}  Bb5 {[%clk 0:01:20]} 29. Rxh6 {[%clk 0:02:28]}  Kg7 {[%clk 0:01:19]} 30. Rd6 {[%clk 0:02:27]}  Bc4 {[%clk 0:01:13]} 31. Bf3 {[%clk 0:02:21]}  Bxa2 {[%clk 0:01:11]} 32. Bg4 {[%clk 0:02:21]}  Re8 {[%clk 0:01:07]} 33. Bf5 {[%clk 0:02:21]}  Bb1 {[%clk 0:01:05]} 34. f3 {[%clk 0:02:20]}  Re7 {[%clk 0:01:00]} 35. Rg6+ {[%clk 0:02:20]}  Kf7 {[%clk 0:01:00]} 36. Rxg5 {[%clk 0:02:21]}  Rc7 {[%clk 0:00:58]} 37. h4 {[%clk 0:02:21]}  Rc2 {[%clk 0:00:53]} 38. Rg4 {[%clk 0:02:18]}  Rc3 {[%clk 0:00:51]} 39. Rxf4 {[%clk 0:02:19]}  Rxa3 {[%clk 0:00:51]} 40. h5 {[%clk 0:02:16]}  Kg7 {[%clk 0:00:43]} 41. Bg6 {[%clk 0:02:14]}  Kh6 {[%clk 0:00:41]} 42. Kf2 {[%clk 0:02:14]}  Ra2+ {[%clk 0:00:41]} 43. Kg3 {[%clk 0:02:14]}  Bd3 {[%clk 0:00:40]} 44. Rf7 {[%clk 0:02:14]}  Kg5 {[%clk 0:00:36]} 45. f4+ {[%clk 0:02:13]} 1-0


[Site "https://www.chess.com"]

[Event "Titled Tuesday Blitz December 20 Late 2022"]
[White "Nakamura, Hikaru"]
[Black "Makridis, Dimitrios"]
[WhiteFideId "2016192"]
[BlackFideId "25864475"]
[WhiteElo "2909"]
[BlackElo "2272"]
[Result "1-0"]
[Round "03"]
[TimeControl "180+1"]
[Date "2022.12.20"]
[WhiteClock "0:00:54"]
[BlackClock "0:00:03"]

1. g3 {[%clk 0:03:00]}  d5 {[%clk 0:02:58]} 2. Nf3 {[%clk 0:03:00]}  Nf6 {[%clk 0:02:58]} 3. Bg2 {[%clk 0:03:00]}  Bf5 {[%clk 0:02:57]} 4. c4 {[%clk 0:02:59]}  e6 {[%clk 0:02:53]} 5. Qb3 {[%clk 0:02:59]}  Qc8 {[%clk 0:02:36]} 6. Nh4 {[%clk 0:02:51]}  Be4 {[%clk 0:02:35]} 7. f3 {[%clk 0:02:52]}  Bg6 {[%clk 0:02:34]} 8. Nxg6 {[%clk 0:02:47]}  hxg6 {[%clk 0:02:35]} 9. d3 {[%clk 0:02:47]}  c6 {[%clk 0:02:31]} 10. Nc3 {[%clk 0:02:44]}  Nbd7 {[%clk 0:02:31]} 11. f4 {[%clk 0:02:44]}  Be7 {[%clk 0:02:24]} 12. Be3 {[%clk 0:02:42]}  a6 {[%clk 0:02:04]} 13. Rc1 {[%clk 0:02:38]}  Qb8 {[%clk 0:02:00]} 14. Bf3 {[%clk 0:02:37]}  dxc4 {[%clk 0:01:45]} 15. Qxc4 {[%clk 0:02:34]}  e5 {[%clk 0:01:46]} 16. O-O {[%clk 0:02:29]}  exf4 {[%clk 0:01:35]} 17. gxf4 {[%clk 0:02:29]}  Rh4 {[%clk 0:01:30]} 18. Bd2 {[%clk 0:02:14]}  Ne5 {[%clk 0:01:25]} 19. Qd4 {[%clk 0:02:07]}  Nxf3+ {[%clk 0:01:20]} 20. Rxf3 {[%clk 0:02:08]}  Rg4+ {[%clk 0:01:20]} 21. Kh1 {[%clk 0:02:08]}  Qc7 {[%clk 0:01:17]} 22. Qf2 {[%clk 0:02:08]}  Qa5 {[%clk 0:00:57]} 23. e4 {[%clk 0:02:00]}  Qh5 {[%clk 0:00:56]} 24. e5 {[%clk 0:01:52]}  Nd5 {[%clk 0:00:44]} 25. Nxd5 {[%clk 0:01:49]}  cxd5 {[%clk 0:00:45]} 26. Rc7 {[%clk 0:01:34]}  Rh4 {[%clk 0:00:45]} 27. Rg3 {[%clk 0:01:23]}  Bd8 {[%clk 0:00:38]} 28. Rc1 {[%clk 0:01:14]}  Qf5 {[%clk 0:00:28]} 29. Qg2 {[%clk 0:01:12]}  Qe6 {[%clk 0:00:17]} 30. f5 {[%clk 0:01:05]}  Qxf5 {[%clk 0:00:14]} 31. e6 {[%clk 0:01:06]}  fxe6 {[%clk 0:00:14]} 32. Rf1 {[%clk 0:01:03]}  Qh5 {[%clk 0:00:13]} 33. Re3 {[%clk 0:01:01]}  Kd7 {[%clk 0:00:13]} 34. Rf7+ {[%clk 0:00:59]}  Be7 {[%clk 0:00:12]} 35. Bb4 {[%clk 0:00:59]}  Qd1+ {[%clk 0:00:12]} 36. Re1 {[%clk 0:00:59]}  Qxd3 {[%clk 0:00:06]} 37. Rxe7+ {[%clk 0:00:58]}  Kc6 {[%clk 0:00:07]} 38. R1xe6+ {[%clk 0:00:57]}  Kb5 {[%clk 0:00:07]} 39. Rxb7+ {[%clk 0:00:58]}  Kc4 {[%clk 0:00:04]} 40. b3+ {[%clk 0:00:59]}  Kd4 {[%clk 0:00:03]} 41. Qf2+ {[%clk 0:00:54]} 1-0


[Site "https://www.chess.com"]

[Event "Titled Tuesday Blitz December 20 Late 2022"]
[White "Omelja, Artem"]
[Black "aidenzhouu"]
[WhiteFideId "14119846"]
[WhiteElo "2404"]
[BlackElo "2392"]
[Result "0-1"]
[Round "03"]
[TimeControl "180+1"]
[Date "2022.12.21"]
[WhiteClock "0:00:42"]
[BlackClock "0:00:48"]

1. e4 {[%clk 0:03:00]}  e6 {[%clk 0:02:58]} 2. d3 {[%clk 0:02:59]}  d5 {[%clk 0:02:59]} 3. Nd2 {[%clk 0:02:54]}  Nf6 {[%clk 0:02:49]} 4. Ngf3 {[%clk 0:02:52]}  c5 {[%clk 0:02:48]} 5. g3 {[%clk 0:02:51]}  Nc6 {[%clk 0:02:49]} 6. Bg2 {[%clk 0:02:49]}  g6 {[%clk 0:02:49]} 7. O-O {[%clk 0:02:49]}  Bg7 {[%clk 0:02:50]} 8. c3 {[%clk 0:02:43]}  O-O {[%clk 0:02:50]} 9. e5 {[%clk 0:02:43]}  Nd7 {[%clk 0:02:49]} 10. d4 {[%clk 0:02:44]}  a5 {[%clk 0:02:32]} 11. a4 {[%clk 0:02:33]}  b6 {[%clk 0:02:28]} 12. Re1 {[%clk 0:02:32]}  cxd4 {[%clk 0:02:23]} 13. cxd4 {[%clk 0:02:30]}  Nb4 {[%clk 0:02:24]} 14. Nf1 {[%clk 0:02:24]}  Ba6 {[%clk 0:02:23]} 15. Be3 {[%clk 0:02:20]}  Rc8 {[%clk 0:02:18]} 16. Qc1 {[%clk 0:02:15]}  Rxc1 {[%clk 0:02:17]} 17. Rexc1 {[%clk 0:02:12]}  Qb8 {[%clk 0:02:00]} 18. Bd2 {[%clk 0:01:53]}  Rc8 {[%clk 0:01:53]} 19. Bxb4 {[%clk 0:01:52]}  axb4 {[%clk 0:01:52]} 20. N1d2 {[%clk 0:01:52]}  Rxc1+ {[%clk 0:01:47]} 21. Rxc1 {[%clk 0:01:52]}  Bh6 {[%clk 0:01:48]} 22. b3 {[%clk 0:01:39]}  b5 {[%clk 0:01:38]} 23. Bf1 {[%clk 0:01:33]}  Qb7 {[%clk 0:01:33]} 24. a5 {[%clk 0:01:31]}  Nb8 {[%clk 0:01:30]} 25. h4 {[%clk 0:01:19]}  Nc6 {[%clk 0:01:30]} 26. Rc2 {[%clk 0:01:16]}  Nxa5 {[%clk 0:01:25]} 27. Ng5 {[%clk 0:01:16]}  Bxg5 {[%clk 0:01:22]} 28. hxg5 {[%clk 0:01:16]}  Nc6 {[%clk 0:01:21]} 29. Nf3 {[%clk 0:01:14]}  Qb6 {[%clk 0:01:21]} 30. Rd2 {[%clk 0:01:14]}  Na5 {[%clk 0:01:20]} 31. Rd3 {[%clk 0:01:09]}  Qc6 {[%clk 0:01:16]} 32. Nd2 {[%clk 0:01:01]}  Qc2 {[%clk 0:01:06]} 33. f4 {[%clk 0:00:52]}  Nc4 {[%clk 0:01:01]} 34. Nf3 {[%clk 0:00:47]}  Nb2 {[%clk 0:00:55]} 35. Re3 {[%clk 0:00:43]}  Nd1 {[%clk 0:00:52]} 36. Rd3 {[%clk 0:00:42]}  Qf2+ {[%clk 0:00:48]} 0-1


[Site "https://www.chess.com"]

[Event "Titled Tuesday Blitz December 20 Late 2022"]
[White "Ozates, Tuna"]
[Black "Andreassen, Lars"]
[WhiteFideId "6354521"]
[BlackFideId "1504878"]
[WhiteElo "2151"]
[BlackElo "2119"]
[Result "1-0"]
[Round "03"]
[TimeControl "180+1"]
[Date "2022.12.21"]
[WhiteClock "0:00:16"]
[BlackClock "0:00:02"]

1. e4 {[%clk 0:03:00]}  d5 {[%clk 0:02:54]} 2. exd5 {[%clk 0:03:00]}  Nf6 {[%clk 0:02:54]} 3. c4 {[%clk 0:02:58]}  e6 {[%clk 0:02:54]} 4. d4 {[%clk 0:02:58]}  exd5 {[%clk 0:02:54]} 5. Nc3 {[%clk 0:02:59]}  Bb4 {[%clk 0:02:53]} 6. a3 {[%clk 0:02:57]}  Bxc3+ {[%clk 0:02:52]} 7. bxc3 {[%clk 0:02:58]}  O-O {[%clk 0:02:52]} 8. Bd3 {[%clk 0:02:58]}  Re8+ {[%clk 0:02:52]} 9. Ne2 {[%clk 0:02:58]}  dxc4 {[%clk 0:02:52]} 10. Bxc4 {[%clk 0:02:59]}  Bg4 {[%clk 0:02:52]} 11. O-O {[%clk 0:02:58]}  Nbd7 {[%clk 0:02:49]} 12. f3 {[%clk 0:02:57]}  Bf5 {[%clk 0:02:48]} 13. Ng3 {[%clk 0:02:55]}  Bg6 {[%clk 0:02:48]} 14. f4 {[%clk 0:02:55]}  Be4 {[%clk 0:02:45]} 15. f5 {[%clk 0:02:36]}  Nb6 {[%clk 0:02:37]} 16. Bb3 {[%clk 0:02:33]}  Bd5 {[%clk 0:02:33]} 17. Bc2 {[%clk 0:02:28]}  Nc4 {[%clk 0:02:10]} 18. Bg5 {[%clk 0:02:26]}  Ne3 {[%clk 0:02:04]} 19. Bxe3 {[%clk 0:02:15]}  Rxe3 {[%clk 0:02:05]} 20. Qd2 {[%clk 0:02:15]}  Re7 {[%clk 0:01:53]} 21. Rab1 {[%clk 0:02:10]}  Qd6 {[%clk 0:01:49]} 22. Bd3 {[%clk 0:02:04]}  Rae8 {[%clk 0:01:30]} 23. c4 {[%clk 0:02:01]}  Be4 {[%clk 0:01:30]} 24. d5 {[%clk 0:01:54]}  b6 {[%clk 0:01:05]} 25. Bxe4 {[%clk 0:01:48]}  Nxe4 {[%clk 0:01:06]} 26. Nxe4 {[%clk 0:01:49]}  Rxe4 {[%clk 0:01:02]} 27. f6 {[%clk 0:01:49]}  g6 {[%clk 0:00:47]} 28. Rb3 {[%clk 0:01:33]}  Qc5+ {[%clk 0:00:32]} 29. Kh1 {[%clk 0:01:31]}  Qxc4 {[%clk 0:00:30]} 30. Rbf3 {[%clk 0:01:31]}  Rh4 {[%clk 0:00:23]} 31. d6 {[%clk 0:01:25]}  cxd6 {[%clk 0:00:22]} 32. Qxd6 {[%clk 0:01:25]}  Qe6 {[%clk 0:00:18]} 33. Qc7 {[%clk 0:01:19]}  h5 {[%clk 0:00:14]} 34. Qxa7 {[%clk 0:01:16]}  Qe5 {[%clk 0:00:15]} 35. h3 {[%clk 0:01:13]}  Qe2 {[%clk 0:00:12]} 36. Qxb6 {[%clk 0:01:09]}  Rhe4 {[%clk 0:00:12]} 37. Qc5 {[%clk 0:01:00]}  Qa6 {[%clk 0:00:11]} 38. Qg5 {[%clk 0:00:59]}  Re1 {[%clk 0:00:05]} 39. Rxe1 {[%clk 0:00:48]}  Rxe1+ {[%clk 0:00:06]} 40. Kh2 {[%clk 0:00:49]}  Qd6+ {[%clk 0:00:05]} 41. Qf4 {[%clk 0:00:44]}  Qxf4+ {[%clk 0:00:03]} 42. Rxf4 {[%clk 0:00:44]}  Ra1 {[%clk 0:00:03]} 43. Ra4 {[%clk 0:00:43]}  Kh7 {[%clk 0:00:03]} 44. Ra7 {[%clk 0:00:43]}  Kh6 {[%clk 0:00:03]} 45. Rxf7 {[%clk 0:00:17]}  Rxa3 {[%clk 0:00:02]} 46. Rf8 {[%clk 0:00:17]}  Ra6 {[%clk 0:00:02]} 47. Rh8+ {[%clk 0:00:15]}  Kg5 {[%clk 0:00:02]} 48. f7 {[%clk 0:00:16]} 1-0


[Site "https://www.chess.com"]

[Event "Titled Tuesday Blitz December 20 Late 2022"]
[White "Paravyan, David"]
[Black "Matinian, Nikita"]
[WhiteFideId "4194985"]
[BlackFideId "24129100"]
[WhiteElo "2551"]
[BlackElo "2422"]
[Result "1-0"]
[Round "03"]
[TimeControl "180+1"]
[Date "2022.12.20"]
[WhiteClock "0:00:13"]
[BlackClock "0:00:01"]

1. e4 {[%clk 0:03:00]}  c5 {[%clk 0:02:58]} 2. Nf3 {[%clk 0:03:00]}  e6 {[%clk 0:02:58]} 3. d4 {[%clk 0:03:01]}  cxd4 {[%clk 0:02:58]} 4. Nxd4 {[%clk 0:03:01]}  a6 {[%clk 0:02:59]} 5. Bd3 {[%clk 0:03:00]}  Bc5 {[%clk 0:02:58]} 6. Nb3 {[%clk 0:03:00]}  Ba7 {[%clk 0:02:58]} 7. Bf4 {[%clk 0:03:00]}  d6 {[%clk 0:02:56]} 8. Qd2 {[%clk 0:03:00]}  e5 {[%clk 0:02:52]} 9. Bg5 {[%clk 0:03:00]}  Ne7 {[%clk 0:02:50]} 10. Nc3 {[%clk 0:03:01]}  Be6 {[%clk 0:02:48]} 11. O-O-O {[%clk 0:02:59]}  f6 {[%clk 0:02:46]} 12. Bh4 {[%clk 0:02:58]}  Nbc6 {[%clk 0:02:47]} 13. f4 {[%clk 0:02:56]}  Rc8 {[%clk 0:02:43]} 14. Bf2 {[%clk 0:02:54]}  Bxf2 {[%clk 0:02:37]} 15. Qxf2 {[%clk 0:02:55]}  Nb4 {[%clk 0:02:37]} 16. Kb1 {[%clk 0:02:52]}  b5 {[%clk 0:02:12]} 17. fxe5 {[%clk 0:02:38]}  fxe5 {[%clk 0:02:13]} 18. Be2 {[%clk 0:02:37]}  Ng6 {[%clk 0:02:06]} 19. Bh5 {[%clk 0:02:36]}  Bf7 {[%clk 0:01:44]} 20. Bxg6 {[%clk 0:02:12]}  hxg6 {[%clk 0:01:41]} 21. a3 {[%clk 0:01:41]}  Nc6 {[%clk 0:01:17]} 22. Qd2 {[%clk 0:01:41]}  O-O {[%clk 0:01:02]} 23. Qxd6 {[%clk 0:01:40]}  Qg5 {[%clk 0:01:02]} 24. Qd2 {[%clk 0:01:38]}  Qg4 {[%clk 0:00:45]} 25. h3 {[%clk 0:01:35]}  Qg3 {[%clk 0:00:45]} 26. Nd5 {[%clk 0:01:35]}  Kh7 {[%clk 0:00:34]} 27. Rhf1 {[%clk 0:01:33]}  Nd4 {[%clk 0:00:31]} 28. Nxd4 {[%clk 0:01:31]}  exd4 {[%clk 0:00:31]} 29. Rf3 {[%clk 0:01:30]}  Qh4 {[%clk 0:00:21]} 30. Rf4 {[%clk 0:01:22]}  Qh6 {[%clk 0:00:18]} 31. Qf2 {[%clk 0:01:20]}  Bxd5 {[%clk 0:00:08]} 32. Rxf8 {[%clk 0:01:19]}  Rxf8 {[%clk 0:00:09]} 33. Qxf8 {[%clk 0:01:20]}  Bxe4 {[%clk 0:00:09]} 34. Qf2 {[%clk 0:01:13]}  d3 {[%clk 0:00:07]} 35. cxd3 {[%clk 0:01:13]}  Bf5 {[%clk 0:00:08]} 36. Ka1 {[%clk 0:01:00]}  Qg5 {[%clk 0:00:08]} 37. d4 {[%clk 0:00:53]}  b4 {[%clk 0:00:08]} 38. Qd2 {[%clk 0:00:50]}  Qg3 {[%clk 0:00:05]} 39. Qxb4 {[%clk 0:00:47]}  Qxg2 {[%clk 0:00:05]} 40. Qd2 {[%clk 0:00:40]}  Qd5 {[%clk 0:00:04]} 41. Re1 {[%clk 0:00:29]}  Be6 {[%clk 0:00:04]} 42. b4 {[%clk 0:00:29]}  Qb3 {[%clk 0:00:03]} 43. Re3 {[%clk 0:00:28]}  Qc4 {[%clk 0:00:03]} 44. h4 {[%clk 0:00:24]}  Bf5 {[%clk 0:00:03]} 45. d5 {[%clk 0:00:17]}  Qf1+ {[%clk 0:00:03]} 46. Re1 {[%clk 0:00:17]}  Qf3 {[%clk 0:00:03]} 47. Kb2 {[%clk 0:00:17]}  Qg4 {[%clk 0:00:01]} 48. d6 {[%clk 0:00:16]}  Bd7 {[%clk 0:00:01]} 49. Re7 {[%clk 0:00:14]}  Qf5 {[%clk 0:00:01]} 50. Qd4 {[%clk 0:00:13]} 1-0


[Site "https://www.chess.com"]

[Event "Titled Tuesday Blitz December 20 Late 2022"]
[White "Peatman, Carter"]
[Black "reevecanada"]
[WhiteFideId "2096480"]
[WhiteElo "2454"]
[BlackElo "2203"]
[Result "0-1"]
[Round "03"]
[TimeControl "180+1"]
[Date "2022.12.21"]
[WhiteClock "0:01:33"]
[BlackClock "0:02:25"]

1. d4 {[%clk 0:02:59]}  c5 {[%clk 0:02:59]} 2. dxc5 {[%clk 0:02:57]}  Na6 {[%clk 0:02:58]} 3. e4 {[%clk 0:02:53]}  Nxc5 {[%clk 0:02:56]} 4. Nc3 {[%clk 0:02:51]}  d6 {[%clk 0:02:55]} 5. Nf3 {[%clk 0:02:47]}  Nf6 {[%clk 0:02:53]} 6. Bd3 {[%clk 0:02:36]}  g6 {[%clk 0:02:51]} 7. Bg5 {[%clk 0:02:34]}  Bg7 {[%clk 0:02:49]} 8. Qe2 {[%clk 0:02:32]}  h6 {[%clk 0:02:48]} 9. Bf4 {[%clk 0:02:30]}  Nh5 {[%clk 0:02:42]} 10. Bd2 {[%clk 0:02:23]}  O-O {[%clk 0:02:40]} 11. Rg1 {[%clk 0:02:15]}  Bxc3 {[%clk 0:02:33]} 12. Bxc3 {[%clk 0:02:03]}  Nf4 {[%clk 0:02:33]} 13. Qe3 {[%clk 0:02:03]}  e5 {[%clk 0:02:32]} 14. g3 {[%clk 0:01:57]}  Ncxd3+ {[%clk 0:02:29]} 15. cxd3 {[%clk 0:01:58]}  Nh3 {[%clk 0:02:29]} 16. Qxh6 {[%clk 0:01:36]}  Nxg1 {[%clk 0:02:23]} 17. Ng5 {[%clk 0:01:35]}  Qxg5 {[%clk 0:02:22]} 18. Qxg5 {[%clk 0:01:34]}  Nf3+ {[%clk 0:02:23]} 19. Ke2 {[%clk 0:01:34]}  Nxg5 {[%clk 0:02:24]} 20. f4 {[%clk 0:01:32]}  Nh7 {[%clk 0:02:25]} 21. fxe5 {[%clk 0:01:32]}  dxe5 {[%clk 0:02:25]} 22. Bxe5 {[%clk 0:01:33]}  Be6 {[%clk 0:02:25]} 0-1


[Site "https://www.chess.com"]

[Event "Titled Tuesday Blitz December 20 Late 2022"]
[White "Poliakova, Varvara"]
[Black "Sanchez, Robert"]
[WhiteFideId "13518313"]
[BlackFideId "2034360"]
[WhiteElo "2075"]
[BlackElo "2383"]
[Result "1-0"]
[Round "03"]
[TimeControl "180+1"]
[Date "2022.12.21"]
[WhiteClock "0:00:49"]
[BlackClock "0:00:06"]

1. e4 {[%clk 0:03:00]}  e6 {[%clk 0:02:54]} 2. d4 {[%clk 0:03:00]}  d5 {[%clk 0:02:54]} 3. e5 {[%clk 0:03:00]}  c5 {[%clk 0:02:54]} 4. c3 {[%clk 0:03:00]}  Nc6 {[%clk 0:02:54]} 5. Nf3 {[%clk 0:03:00]}  Bd7 {[%clk 0:02:54]} 6. a3 {[%clk 0:03:00]}  f6 {[%clk 0:02:49]} 7. b4 {[%clk 0:02:59]}  cxd4 {[%clk 0:02:40]} 8. cxd4 {[%clk 0:02:59]}  fxe5 {[%clk 0:02:40]} 9. dxe5 {[%clk 0:02:59]}  Qc7 {[%clk 0:02:40]} 10. Bb2 {[%clk 0:02:59]}  Nge7 {[%clk 0:02:35]} 11. Nbd2 {[%clk 0:02:54]}  Ng6 {[%clk 0:02:33]} 12. Rc1 {[%clk 0:02:54]}  a6 {[%clk 0:02:31]} 13. h4 {[%clk 0:02:48]}  Qb8 {[%clk 0:02:18]} 14. Bd3 {[%clk 0:02:23]}  Ncxe5 {[%clk 0:02:06]} 15. Nxe5 {[%clk 0:02:22]}  Nxe5 {[%clk 0:02:06]} 16. Qh5+ {[%clk 0:02:23]}  Nf7 {[%clk 0:02:04]} 17. O-O {[%clk 0:02:12]}  g6 {[%clk 0:01:41]} 18. Qe2 {[%clk 0:01:59]}  Rg8 {[%clk 0:01:26]} 19. f4 {[%clk 0:01:57]}  Bd6 {[%clk 0:01:12]} 20. g3 {[%clk 0:01:53]}  Qa7+ {[%clk 0:01:06]} 21. Kh2 {[%clk 0:01:52]}  h5 {[%clk 0:00:50]} 22. Nf3 {[%clk 0:01:50]}  Nh6 {[%clk 0:00:48]} 23. Bd4 {[%clk 0:01:39]}  Ng4+ {[%clk 0:00:49]} 24. Kg2 {[%clk 0:01:38]}  Qb8 {[%clk 0:00:45]} 25. Ng5 {[%clk 0:01:36]}  Qd8 {[%clk 0:00:30]} 26. Rce1 {[%clk 0:01:23]}  Qe7 {[%clk 0:00:20]} 27. Qb2 {[%clk 0:01:07]}  O-O-O {[%clk 0:00:19]} 28. b5 {[%clk 0:00:58]}  axb5 {[%clk 0:00:17]} 29. Bxb5 {[%clk 0:00:59]}  Bxb5 {[%clk 0:00:16]} 30. Qxb5 {[%clk 0:00:57]}  Kb8 {[%clk 0:00:13]} 31. Nxe6 {[%clk 0:00:54]}  Rc8 {[%clk 0:00:11]} 32. Nc5 {[%clk 0:00:53]}  Qf7 {[%clk 0:00:08]} 33. Nd7+ {[%clk 0:00:50]}  Kc7 {[%clk 0:00:06]} 34. Bb6# {[%clk 0:00:49]} 1-0


[Site "https://www.chess.com"]